fUSD/lending_fUSD_20251031
["ID","MTS","AMOUNT","RATE_DAILY","PERIOD"]
[392746705,1761902530328,527.74,0.00031506,120]
[392746706,1761902530750,-200.0,0.00014096,2]
[392746707,1761902531654,521.78,0.00031232,120]
[392746708,1761902531905,521.78,0.00031506,120]
[392746709,1761902533881,500.0,0.00031232,120]
[392746710,1761902534296,500.0,0.00031506,120]
[392746711,1761902535118,1694.69,0.00031232,120]
[392746712,1761902535318,711.89,0.00031232,120]
[392746713,1761902535376,1694.69,0.00031506,120]
[392746714,1761902535578,711.89,0.00031506,120]
[392746715,1761902536355,500.0,0.00031232,120]
[392746716,1761902536583,500.0,0.00031506,120]
[392746717,1761902537934,500.0,0.00031232,120]
[392746718,1761902538163,500.0,0.00031506,120]
[392746719,1761902538206,500.0,0.00031232,120]
[392746720,1761902538360,500.0,0.00031232,120]
[392746721,1761902538413,500.0,0.00031506,120]
[392746722,1761902538605,500.0,0.00031506,120]
[392746723,1761902539167,500.0,0.00031232,120]
[392746724,1761902539413,500.0,0.00031506,120]
[392746725,1761902539709,500.0,0.00031232,120]
[392746726,1761902539911,500.0,0.00031232,120]
[392746727,1761902539959,500.0,0.00031506,120]
[392746728,1761902540146,500.0,0.00031506,120]
[392746729,1761902540978,500.0,0.00031232,120]
[392746730,1761902541395,683.16,0.00031232,120]
[392746731,1761902541449,500.0,0.00031506,120]
[392746732,1761902541637,683.16,0.00031506,120]
[392746733,1761902542169,500.0,0.00031232,120]
[392746734,1761902542451,546.65916615,0.00031506,120]
[392746735,1761902543877,500.0,0.00031232,120]
[392746736,1761902544112,500.0,0.00031506,120]
[392746737,1761902545857,500.0,0.00031232,120]
[392746738,1761902546230,500.0,0.00031506,120]
[392746739,1761902550419,500.0,0.00031232,120]
[392746740,1761902550464,500.0,0.00031232,120]
[392746741,1761902550650,500.0,0.00031506,120]
[392746742,1761902550693,500.0,0.00031506,120]
[392746743,1761902553494,500.0,0.00031232,120]
[392746744,1761902553715,500.0,0.00031506,120]
[392746745,1761902555805,500.0,0.00031232,120]
[392746746,1761902556029,500.0,0.00031506,120]
[392746747,1761902558124,500.0,0.00031232,120]
[392746748,1761902558381,500.0,0.00031506,120]
[392746749,1761902559985,500.0,0.00031232,120]
[392746750,1761902560360,500.0,0.00031506,120]
[392746751,1761902561444,272.18,0.00031232,120]
[392746752,1761902561870,500.0,0.00031232,120]
[392746753,1761902562136,500.0,0.00031506,120]
[392746754,1761902562418,500.0,0.00031232,120]
[392746755,1761902562911,500.0,0.00031506,120]
[392746756,1761902564066,586.31017961,0.00031232,120]
[392746757,1761902566080,500.0,0.00031232,120]
[392746758,1761902566247,500.0,0.00031232,120]
[392746759,1761902566331,500.0,0.00031506,120]
[392746760,1761902566497,500.0,0.00031506,120]
[392746761,1761902571424,321.58206515,0.00031232,120]
[392746762,1761902571690,-150.0,0.000171,7]
[392746763,1761902571725,-1135.0,0.00018463,7]
[392746764,1761902571753,-378.0,0.000194,14]
[392746765,1761902572670,500.0,0.00031232,120]
[392746766,1761902572945,500.0,0.00031506,120]
[392746767,1761902574745,500.0,0.00031232,120]
[392746768,1761902574977,500.0,0.00031506,120]
[392746769,1761902578289,500.0,0.00031232,120]
[392746770,1761902578536,500.0,0.00031506,120]
[392746771,1761902578631,500.0,0.00031232,120]
[392746772,1761902578879,500.0,0.00031506,120]
[392746773,1761902580482,500.0,0.00031232,120]
[392746774,1761902580735,500.0,0.00031506,120]
[392746775,1761902583396,500.0,0.00031232,120]
[392746776,1761902583644,500.0,0.00031506,120]
[392746777,1761902587158,530.93847309,0.00031232,120]
[392746778,1761902587597,500.0,0.00031232,120]
[392746779,1761902587830,500.0,0.00031506,120]
[392746780,1761902589166,500.0,0.00031232,120]
[392746781,1761902589221,500.0,0.00031232,120]
[392746782,1761902589462,500.0,0.00031506,120]
[392746783,1761902589515,500.0,0.00031506,120]
[392746784,1761902591364,500.0,0.00031232,120]
[392746785,1761902591600,500.0,0.00031506,120]
[392746786,1761902591772,500.0,0.00031232,120]
[392746787,1761902592022,500.0,0.00031506,120]
[392746788,1761902593672,500.0,0.00031232,120]
[392746789,1761902593913,500.0,0.00031506,120]
[392746790,1761902597082,527.30152085,0.00031232,120]
[392746791,1761902598523,500.0,0.00031232,120]
[392746792,1761902598753,500.0,0.00031506,120]
[392746793,1761902602864,500.0,0.00031232,120]
[392746794,1761902603101,500.0,0.00031506,120]
[392746795,1761902604734,500.0,0.00031232,120]
[392746796,1761902604986,166.69880529,0.00031506,120]
[392746797,1761902605224,500.0,0.00031232,120]
[392746798,1761902605481,500.0,0.00031506,120]
[392746799,1761902607345,500.0,0.00031232,120]
[392746800,1761902607395,500.0,0.00031506,120]
[392746801,1761902608390,500.0,0.00031232,120]
[392746802,1761902608633,500.0,0.00031506,120]
[392746803,1761902610843,257.12793474,0.00031232,120]
[392746804,1761902611074,500.0,0.00031232,120]
[392746805,1761902611321,500.0,0.00031506,120]
[392746806,1761902612420,500.0,0.00031232,120]
[392746807,1761902612660,500.0,0.00031506,120]
[392746808,1761902612834,626.14562899,0.00031232,120]
[392746809,1761902613402,500.0,0.00031232,120]
[392746810,1761902613638,500.0,0.00031506,120]
[392746811,1761902614489,199.23016603,0.00031232,120]
[392746812,1761902614688,500.0,0.00031232,120]
[392746813,1761902615136,500.0,0.00031506,120]
[392746814,1761902615916,548.53271737,0.00031232,120]
[392746815,1761902616526,500.0,0.00031232,120]
[392746816,1761902616909,500.0,0.00031232,120]
[392746817,1761902616956,500.0,0.00031506,120]
[392746818,1761902617153,500.0,0.00031506,120]
[392746819,1761902617641,500.0,0.00031232,120]
[392746820,1761902617710,487.52847478,0.00031506,120]
[392746821,1761902619944,717.8,0.00031232,120]
[392746822,1761902620176,717.8,0.00031506,120]
[392746823,1761902620451,500.0,0.00031232,120]
[392746824,1761902620686,353.21116045,0.00031506,120]
[392746825,1761902622629,623.8,0.00031232,120]
[392746826,1761902622867,623.8,0.00031506,120]
[392746827,1761902624478,500.0,0.00031232,120]
[392746828,1761902624773,500.0,0.00031506,120]
[392746829,1761902625238,293.82631084,0.00031232,120]
[392746830,1761902626530,500.0,0.00031232,120]
[392746831,1761902626760,500.0,0.00031506,120]
[392746832,1761902630173,513.63,0.00031232,120]
[392746833,1761902630394,513.63,0.00031506,120]
[392746834,1761902631566,500.0,0.00031232,120]
[392746835,1761902631807,500.0,0.00031506,120]
[392746836,1761902632466,554.44,0.00031232,120]
[392746837,1761902632961,554.44,0.00031506,120]
[392746838,1761902633142,500.0,0.00031232,120]
[392746839,1761902633374,500.0,0.00031506,120]
[392746840,1761902633427,188.01779937,0.00031232,120]
[392746841,1761902634147,521.16,0.00031232,120]
[392746842,1761902634369,521.16,0.00031506,120]
[392746843,1761902635530,500.0,0.00031232,120]
[392746844,1761902635777,500.0,0.00031506,120]
[392746845,1761902635975,288.16627301,0.00031232,120]
[392746846,1761902640167,500.0,0.00031232,120]
[392746847,1761902640397,500.0,0.00031506,120]
[392746848,1761902641724,613.14,0.00031232,120]
[392746849,1761902641770,500.0,0.00031232,120]
[392746851,1761902642004,613.14,0.00031506,120]
[392746852,1761902642049,500.0,0.00031506,120]
[392746853,1761902642411,876.89,0.00031232,120]
[392746854,1761902642710,876.89,0.00031506,120]
[392746855,1761902642827,500.0,0.00031232,120]
[392746856,1761902643113,500.0,0.00031232,120]
[392746857,1761902643166,500.0,0.00031506,120]
[392746858,1761902643345,500.0,0.00031506,120]
[392746859,1761902644375,500.0,0.00031232,120]
[392746860,1761902644579,500.0,0.00031232,120]
[392746861,1761902644631,500.0,0.00031506,120]
[392746862,1761902644819,469.5126499,0.00031506,120]
[392746863,1761902645128,500.0,0.00031232,120]
[392746864,1761902645364,500.0,0.00031506,120]
[392746865,1761902646829,500.0,0.00031232,120]
[392746866,1761902647061,500.0,0.00031506,120]
[392746867,1761902649069,485.79288797,0.00031232,120]
[392746868,1761902649571,500.0,0.00031232,120]
[392746869,1761902649913,500.0,0.00031506,120]
[392746870,1761902651251,500.0,0.00031232,120]
[392746871,1761902651484,500.0,0.00031506,120]
[392746872,1761902651532,500.0,0.00031232,120]
[392746873,1761902651738,500.0,0.00031506,120]
[392746874,1761902653846,496.36929326,0.00031232,120]
[392746875,1761902654772,500.0,0.00031232,120]
[392746876,1761902655012,641.71055768,0.00031506,120]
[392746877,1761902655708,578.25,0.00031232,120]
[392746878,1761902655946,578.25,0.00031506,120]
[392746879,1761902656464,500.0,0.00031232,120]
[392746880,1761902656695,500.0,0.00031506,120]
[392746881,1761902658529,720.95,0.00031232,120]
[392746882,1761902658802,720.95,0.00031506,120]
[392746883,1761902659775,500.0,0.00031232,120]
[392746884,1761902659910,500.0,0.00031232,120]
[392746885,1761902659989,500.0,0.00031506,120]
[392746886,1761902660146,500.0,0.00031506,120]
[392746887,1761902660889,500.0,0.00031232,120]
[392746888,1761902661404,500.0,0.00031506,120]
[392746889,1761902661450,500.0,0.00031232,120]
[392746890,1761902661518,500.0,0.00031506,120]
[392746891,1761902663462,500.0,0.00031232,120]
[392746892,1761902663836,500.0,0.00031506,120]
[392746893,1761902665225,829.43,0.00031232,120]
[392746894,1761902665469,829.43,0.00031506,120]
[392746895,1761902667207,500.0,0.00031232,120]
[392746896,1761902667387,529.65,0.00031232,120]
[392746897,1761902667446,500.0,0.00031506,120]
[392746898,1761902667618,529.65,0.00031506,120]
[392746899,1761902668811,-649.87499814,0.000194,14]
[392746900,1761902668832,-4828.12500186,0.0001995,15]
[392746901,1761902669877,500.0,0.00031232,120]
[392746902,1761902670135,500.0,0.00031506,120]
[392746903,1761902671515,500.0,0.00031232,120]
[392746904,1761902671743,500.0,0.00031506,120]
[392746905,1761902672174,238.63974391,0.00031232,120]
[392746906,1761902674563,931.07,0.00031232,120]
[392746907,1761902674830,931.07,0.00031506,120]
[392746908,1761902675527,500.0,0.00031232,120]
[392746909,1761902675789,500.0,0.00031506,120]
[392746910,1761902676179,500.0,0.00031232,120]
[392746911,1761902676257,500.0,0.00031506,120]
[392746912,1761902678309,500.0,0.00031232,120]
[392746913,1761902678518,500.0,0.00031506,120]
[392746914,1761902678721,536.3,0.00031232,120]
[392746915,1761902678965,536.3,0.00031506,120]
[392746916,1761902681406,500.0,0.00031232,120]
[392746917,1761902681640,500.0,0.00031506,120]
[392746918,1761902682545,509.83,0.00031232,120]
[392746919,1761902682798,509.83,0.00031506,120]
[392746920,1761902685219,500.0,0.00031232,120]
[392746921,1761902685455,500.0,0.00031506,120]
[392746922,1761902685816,500.0,0.00031232,120]
[392746923,1761902686081,500.0,0.00031506,120]
[392746924,1761902687045,500.0,0.00031232,120]
[392746925,1761902687278,500.0,0.00031506,120]
[392746926,1761902689436,500.0,0.00031232,120]
[392746927,1761902689667,500.0,0.00031506,120]
[392746928,1761902690652,500.0,0.00031232,120]
[392746929,1761902690729,500.0,0.00031506,120]
[392746930,1761902691421,500.0,0.00031232,120]
[392746931,1761902691665,500.0,0.00031506,120]
[392746932,1761902693340,564.21,0.00031232,120]
[392746933,1761902693576,564.21,0.00031506,120]
[392746934,1761902693627,500.0,0.00031232,120]
[392746935,1761902693892,500.0,0.00031506,120]
[392746936,1761902695223,502.68,0.00031232,120]
[392746937,1761902695473,502.68,0.00031506,120]
[392746938,1761902697129,500.0,0.00031232,120]
[392746939,1761902697368,206.73164313,0.00031506,120]
[392746940,1761902700843,159.14,6.977e-05,2]
[392746941,1761902700907,514.38,0.00031232,120]
[392746942,1761902700943,159.14,7.442e-05,2]
[392746943,1761902701093,514.38,0.00031506,120]
[392746944,1761902701128,159.14,7.908e-05,2]
[392746945,1761902701180,439.60368558,0.00031232,120]
[392746946,1761902701315,159.14,8.373e-05,2]
[392746947,1761902701540,159.14,8.838e-05,2]
[392746948,1761902701730,159.14,9.303e-05,2]
[392746949,1761902701951,159.14,9.768e-05,2]
[392746950,1761902702133,159.14,0.00010233,2]
[392746951,1761902702342,159.14,0.00010698,2]
[392746952,1761902702392,500.0,0.00031232,120]
[392746953,1761902702536,159.14,0.00011164,2]
[392746954,1761902702633,500.0,0.00031506,120]
[392746955,1761902702739,159.14,0.00011629,2]
[392746956,1761902702940,159.14,0.00012094,2]
[392746957,1761902703435,159.14,0.00012559,2]
[392746958,1761902703487,159.14,0.00013024,2]
[392746959,1761902703540,159.14,0.00013489,2]
[392746960,1761902703735,159.14,0.00013954,2]
[392746961,1761902705873,150.0,0.00013488,2]
[392746962,1761902707274,500.0,0.00031232,120]
[392746963,1761902707501,500.0,0.00031506,120]
[392746964,1761902707915,500.0,0.00031232,120]
[392746965,1761902707996,150.0,0.00013488,2]
[392746966,1761902708166,500.0,0.00031506,120]
[392746967,1761902708305,150.0,0.00013488,2]
[392746968,1761902710184,500.0,0.00031232,120]
[392746969,1761902710426,500.0,0.00031506,120]
[392746970,1761902710479,500.0,0.00031232,120]
[392746971,1761902710761,500.0,0.00031506,120]
[392746972,1761902713163,150.0,0.00013488,2]
[392746973,1761902713956,582.41,0.00031232,120]
[392746974,1761902714182,582.41,0.00031506,120]
[392746975,1761902714256,559.78,0.00031232,120]
[392746976,1761902714488,184.13442001,0.00013488,2]
[392746977,1761902714543,150.0,0.00013488,2]
[392746978,1761902714645,559.78,0.00031506,120]
[392746979,1761902714680,150.0,0.00013488,2]
[392746980,1761902717555,500.0,0.00031232,120]
[392746981,1761902717782,500.0,0.00031506,120]
[392746982,1761902717991,282.26140547,0.00031232,120]
[392746983,1761902718354,661.81,0.00031232,120]
[392746984,1761902718461,661.81,0.00031506,120]
[392746985,1761902719041,150.80790803,0.00013488,2]
[392746986,1761902721513,150.0,0.00017,7]
[392746987,1761902721586,150.00000001,0.00013488,2]
[392746988,1761902721621,256.84315726,0.00013488,2]
[392746989,1761902721733,150.00000001,0.00013488,2]
[392746990,1761902721812,500.0,0.00031232,120]
[392746991,1761902721848,151.46775912,0.00013488,2]
[392746992,1761902721919,500.0,0.00031506,120]
[392746993,1761902722130,500.0,0.00031232,120]
[392746994,1761902722375,500.0,0.00031506,120]
[392746995,1761902722546,549.26934473,0.00031232,120]
[392746996,1761902724298,163.59987975,0.00013488,2]
[392746997,1761902724985,1018.3890781,0.000108,2]
[392746998,1761902725967,500.0,0.00031232,120]
[392746999,1761902726196,500.0,0.00031506,120]
[392747000,1761902726369,532.95155789,0.00031232,120]
[392747001,1761902728524,500.0,0.00031232,120]
[392747002,1761902728602,150.0,0.00013488,2]
[392747003,1761902728660,150.0,0.00013488,2]
[392747004,1761902728748,150.0,0.00013488,2]
[392747005,1761902728801,500.0,0.00031506,120]
[392747007,1761902732065,500.0,0.00031232,120]
[392747008,1761902732120,500.0,0.00031232,120]
[392747009,1761902732224,500.0,0.00031506,120]
[392747010,1761902732276,500.0,0.00031506,120]
[392747011,1761902734115,500.0,0.00031232,120]
[392747012,1761902734352,500.0,0.00031506,120]
[392747013,1761902735052,500.0,0.00031232,120]
[392747014,1761902735284,500.0,0.00031506,120]
[392747015,1761902736687,500.0,0.00031232,120]
[392747016,1761902736934,500.0,0.00031506,120]
[392747017,1761902738608,500.0,0.00031232,120]
[392747018,1761902738934,500.0,0.00031506,120]
[392747019,1761902739578,500.0,0.00031232,120]
[392747020,1761902739645,504.67,0.00031232,120]
[392747021,1761902739859,500.0,0.00031506,120]
[392747022,1761902739931,504.67,0.00031506,120]
[392747023,1761902740163,500.0,0.00031232,120]
[392747024,1761902740312,500.0,0.00031232,120]
[392747025,1761902740395,500.0,0.00031506,120]
[392747026,1761902740550,500.0,0.00031506,120]
[392747027,1761902747654,155.61253774,0.00031232,120]
[392747028,1761902749471,626.23,0.00031232,120]
[392747029,1761902749737,626.23,0.00031506,120]
[392747030,1761902749906,435.13839889,0.00031232,120]
[392747031,1761902749959,500.0,0.00031232,120]
[392747032,1761902750169,500.0,0.00031506,120]
[392747033,1761902751815,500.0,0.00031232,120]
[392747034,1761902752059,500.0,0.00031506,120]
[392747035,1761902752359,992.0662978,0.00015,10]
[392747036,1761902752978,43478.51779771,0.0001399,2]
[392747037,1761902755419,500.0,0.00031232,120]
[392747038,1761902755653,500.0,0.00031506,120]
[392747039,1761902758534,500.0,0.00031232,120]
[392747040,1761902758944,500.0,0.00031506,120]
[392747041,1761902759578,500.0,0.00031232,120]
[392747042,1761902759819,192.50730533,0.00031506,120]
[392747043,1761902760464,500.0,0.00031232,120]
[392747044,1761902760608,4836.9110931,8e-05,2]
[392747045,1761902760658,455.33190839,0.00031232,120]
[392747046,1761902760705,500.0,0.00031506,120]
[392747047,1761902761493,500.0,0.00031232,120]
[392747048,1761902761721,500.0,0.00031506,120]
[392747049,1761902763735,664.04,0.00031232,120]
[392747050,1761902763995,664.04,0.00031506,120]
[392747051,1761902765403,500.0,0.00031232,120]
[392747052,1761902765641,500.0,0.00031506,120]
[392747053,1761902769405,500.0,0.00031232,120]
[392747054,1761902769643,500.0,0.00031506,120]
[392747055,1761902774285,500.0,0.00031232,120]
[392747056,1761902774335,500.0,0.00031232,120]
[392747057,1761902774520,500.0,0.00031506,120]
[392747058,1761902774577,500.0,0.00031506,120]
[392747059,1761902778856,500.0,0.00031232,120]
[392747060,1761902778907,1000.0,0.00031232,120]
[392747061,1761902779091,295.86931314,0.00031506,120]
[392747062,1761902779147,1000.0,0.00031506,120]
[392747064,1761902780959,500.0,0.00031232,120]
[392747065,1761902781201,500.0,0.00031506,120]
[392747066,1761902781707,500.0,0.00031232,120]
[392747067,1761902781943,500.0,0.00031506,120]
[392747068,1761902785801,500.0,0.00031232,120]
[392747069,1761902786044,500.0,0.00031506,120]
[392747070,1761902786374,652.57,0.00031232,120]
[392747071,1761902786615,652.57,0.00031506,120]
[392747072,1761902790621,500.0,0.00031232,120]
[392747073,1761902790896,500.0,0.00031506,120]
[392747074,1761902794660,500.0,0.00031232,120]
[392747075,1761902794732,500.0,0.00031506,120]
[392747076,1761902795549,500.0,0.00031232,120]
[392747077,1761902795776,500.0,0.00031506,120]
[392747078,1761902796973,500.0,0.00031232,120]
[392747079,1761902797382,168.21145023,0.00031506,120]
[392747080,1761902797770,160.0,0.000315,120]
[392747081,1761902798595,610.64447661,0.00031232,120]
[392747083,1761902800657,500.0,0.00031232,120]
[392747084,1761902800918,506.71757012,0.00031506,120]
[392747085,1761902801253,500.0,0.00031232,120]
[392747086,1761902801474,500.0,0.00031506,120]
[392747087,1761902802301,500.0,0.00031232,120]
[392747088,1761902802671,500.0,0.00031506,120]
[392747089,1761902803255,500.0,0.00031232,120]
[392747090,1761902803535,500.0,0.00031506,120]
[392747091,1761902803603,500.0,0.00031232,120]
[392747092,1761902803848,500.0,0.00031506,120]
[392747093,1761902804162,253.22236703,0.00031232,120]
[392747094,1761902805040,626.37,0.00031232,120]
[392747095,1761902805102,626.37,0.00031506,120]
[392747096,1761902805995,500.0,0.00031232,120]
[392747097,1761902806241,500.0,0.00031506,120]
[392747098,1761902808361,163.22893364,0.00031232,120]
[392747099,1761902809680,500.0,0.00031232,120]
[392747100,1761902809741,500.0,0.00031506,120]
[392747101,1761902810802,169.6176288,0.00031232,120]
[392747102,1761902810857,500.0,0.00031232,120]
[392747103,1761902811087,500.0,0.00031506,120]
[392747104,1761902811633,160.42,0.00017,5]
[392747105,1761902813202,500.0,0.00031232,120]
[392747106,1761902813428,500.0,0.00031506,120]
[392747107,1761902813496,5000.0,0.000162,5]
[392747108,1761902817556,500.0,0.00031232,120]
[392747109,1761902817717,500.0,0.00031232,120]
[392747110,1761902817950,500.0,0.00031506,120]
[392747111,1761902818023,594.42725388,0.00031232,120]
[392747112,1761902818074,500.0,0.00031232,120]
[392747113,1761902818126,500.0,0.00031506,120]
[392747114,1761902818309,500.0,0.00031506,120]
[392747115,1761902819064,500.0,0.00031232,120]
[392747116,1761902819293,191.78990882,0.00031506,120]
[392747117,1761902821229,500.0,0.00031232,120]
[392747118,1761902821405,521.44,0.00031232,120]
[392747119,1761902821455,500.0,0.00031506,120]
[392747120,1761902821639,521.44,0.00031506,120]
[392747121,1761902829454,500.0,0.00031232,120]
[392747122,1761902829693,500.0,0.00031506,120]
[392747123,1761902830406,500.0,0.00031232,120]
[392747124,1761902830632,500.0,0.00031506,120]
[392747125,1761902832274,500.0,0.00031232,120]
[392747126,1761902832416,500.0,0.00031232,120]
[392747127,1761902832552,500.0,0.00031506,120]
[392747128,1761902832662,602.94217147,0.00031506,120]
[392747129,1761902832949,500.0,0.00031232,120]
[392747130,1761902833189,500.0,0.00031506,120]
[392747131,1761902833699,500.0,0.00031232,120]
[392747132,1761902833936,500.0,0.00031506,120]
[392747133,1761902834258,500.0,0.00031232,120]
[392747134,1761902834497,515.20939095,0.00031506,120]
[392747135,1761902838917,300.0,0.00031232,120]
[392747136,1761902839152,300.0,0.00031506,120]
[392747137,1761902842240,500.0,0.00031232,120]
[392747138,1761902842408,500.0,0.00031232,120]
[392747139,1761902842493,500.0,0.00031506,120]
[392747140,1761902842641,500.0,0.00031506,120]
[392747141,1761902842845,500.0,0.00031232,120]
[392747142,1761902843104,500.0,0.00031506,120]
[392747143,1761902843356,500.0,0.00031232,120]
[392747144,1761902843594,259.64089829,0.00031506,120]
[392747145,1761902847816,500.0,0.00031232,120]
[392747146,1761902848137,500.0,0.00031506,120]
[392747147,1761902849360,500.0,0.00031232,120]
[392747148,1761902849594,321.75265069,0.00031506,120]
[392747149,1761902851705,500.0,0.00031232,120]
[392747150,1761902851960,500.0,0.00031506,120]
[392747151,1761902852342,500.0,0.00031232,120]
[392747152,1761902852570,500.0,0.00031506,120]
[392747153,1761902853275,500.0,0.00031232,120]
[392747154,1761902853521,500.0,0.00031506,120]
[392747155,1761902853732,657.99,0.00031232,120]
[392747156,1761902853977,657.99,0.00031506,120]
[392747157,1761902855454,500.0,0.00031232,120]
[392747158,1761902855728,500.0,0.00031506,120]
[392747159,1761902861035,500.0,0.00031232,120]
[392747160,1761902861294,500.0,0.00031506,120]
[392747161,1761902866338,555.68684931,0.00031232,120]
[392747162,1761902869246,500.0,0.00031232,120]
[392747163,1761902869477,599.4154075,0.00031506,120]
[392747164,1761902870071,500.0,0.00031232,120]
[392747165,1761902870303,500.0,0.00031506,120]
[392747166,1761902870571,500.0,0.00031232,120]
[392747167,1761902870654,500.0,0.00031232,120]
[392747168,1761902870813,500.0,0.00031506,120]
[392747169,1761902870893,500.0,0.00031506,120]
[392747171,1761902872311,500.0,0.00031232,120]
[392747172,1761902872557,500.0,0.00031506,120]
[392747173,1761902873099,500.0,0.00031232,120]
[392747174,1761902873346,500.0,0.00031506,120]
[392747175,1761902873396,553.70715749,0.00031232,120]
[392747176,1761902873854,1125.54,0.00031232,120]
[392747177,1761902874122,1125.54,0.00031506,120]
[392747178,1761902878587,500.0,0.00031232,120]
[392747179,1761902878814,500.0,0.00031506,120]
[392747180,1761902879493,500.0,0.00031232,120]
[392747181,1761902879715,500.0,0.00031506,120]
[392747182,1761902881181,500.0,0.00031232,120]
[392747183,1761902881466,500.0,0.00031506,120]
[392747184,1761902881868,500.0,0.00031232,120]
[392747185,1761902882114,535.76740628,0.00031506,120]
[392747186,1761902883157,500.0,0.00031232,120]
[392747187,1761902883357,635.27,0.00031232,120]
[392747188,1761902883442,500.0,0.00031506,120]
[392747189,1761902883628,635.27,0.00031506,120]
[392747190,1761902888043,500.0,0.00031232,120]
[392747191,1761902888197,500.0,0.00031506,120]
[392747192,1761902888253,500.0,0.00031232,120]
[392747193,1761902888386,500.0,0.00031506,120]
[392747194,1761902888437,500.0,0.00031232,120]
[392747195,1761902888667,500.0,0.00031506,120]
[392747196,1761902892803,500.0,0.00031232,120]
[392747197,1761902893040,500.0,0.00031506,120]
[392747198,1761902893224,500.0,0.00031232,120]
[392747199,1761902893482,500.0,0.00031506,120]
[392747200,1761902895290,220.97820834,0.00031232,120]
[392747201,1761902901576,508.18,0.00031232,120]
[392747202,1761902901817,508.18,0.00031506,120]
[392747203,1761902902596,500.0,0.00031232,120]
[392747204,1761902902822,500.0,0.00031506,120]
[392747205,1761902903695,500.0,0.00031232,120]
[392747213,1761902903945,500.0,0.00031506,120]
[392747218,1761902904698,500.0,0.00031232,120]
[392747219,1761902904942,500.0,0.00031506,120]
[392747223,1761902906820,500.0,0.00031232,120]